[Event "51st La Roda Open 2025"]
[Site "La Roda"]
[Date "2025.04.16"]
[Round "2.17"]
[White "Gonzalez Manchon, Juan Miguel"]
[Black "Nomindalai Tumurbaatar"]
[Result "1/2-1/2"]
[Annotator "RC"]
[ECO "B90"]
[WhiteElo "1988"]
[BlackElo "2211"]
[PlyCount "126"]
[EventDate "2025.04.15"]
[EventType "swiss"]
[EventCountry "ESP"]
[SourceTitle "playchess.com"]
[Source "ChessBase"]
[SourceQuality "1"]
[TimeControl "5400+30"]

1. e4 {[%emt 0:02:12]} c5 {[%emt 0:00:07]} 2. Nf3 {[%emt 0:00:05]} d6 {[%emt 0:00:08]} 3. d4 {[%emt 0:00:05]} cxd4 {[%emt 0:00:07]} 4. Nxd4 {[%emt 0:00:06]} Nf6 {[%emt 0:00:06]} 5. Nc3 {[%emt 0:00:06]} a6 {[%emt 0:00:05]} 6. Be3 {[%emt 0:00:59]} e5 {[%emt 0:00:10]} 7. Nf3 {[%emt 0:00:11]} Be7 {[%emt 0:02:38]} 8. Bc4 {[%emt 0:00:10]} O-O {[%emt 0:01:28]} 9. O-O {[%emt 0:01:23]} Qc7 {[%emt 0:04:02]} 10. Bb3 {[%emt 0:09:31]} Be6 {[%emt 0:08:31]} 11. Qe2 {[%emt 0:09:27]} Rc8 {[%emt 0:04:20]} 12. Rfd1 {[%emt 0:10:23]} Nbd7 {[%emt 0:04:37]} 13. Nd2 {[%emt 0:09:12]} b5 {[%emt 0:01:55]} 14. f3 {[%emt 0:08:04]} Nb6 {[%emt 0:11:41]} 15. Qf2 {[%emt 0:12:46]} Nc4 {[%emt 0:13:39]} 16. Bxc4 {[%emt 0:00:42]} bxc4 {[%emt 0:00:14]} 17. Nf1 {[%emt 0:03:40]} Qc6 {[%emt 0:02:38]} 18. Kh1 {[%emt 0:07:08]} Rab8 {[%emt 0:00:43]} 19. Rab1 {[%emt 0:00:23]} d5 {[%emt 0:17:22]} 20. exd5 {[%emt 0:00:08]} Nxd5 {[%emt 0:00:07]} 21. Nxd5 {[%emt 0:00:34]} Bxd5 {[%emt 0:00:04]} 22. Ng3 {[%emt 0:05:30]} Be6 {[%emt 0:05:25]} 23. Bd2 {[%emt 0:03:39]} Rd8 {[%emt 0:14:13]} 24. Bc3 {[%emt 0:00:05]} Bc5 {[%emt 0:00:25]} 25. Qe2 {[%emt 0:00:16]} Bd4 {[%emt 0:00:06]} 26. Qe1 {[%emt 0:10:01]} Qa4 {[%emt 0:02:33]} 27. Qd2 {[%emt 0:03:12]} h6 {[%emt 0:06:36]} 28. a3 {[%emt 0:01:32]} Rd5 {[%emt 0:00:00]} 29. Bxd4 {[%emt 0:02:22]} exd4 {[%emt 0:00:25]} 30. Qf4 {[%emt 0:00:17]} Rbd8 {[%emt 0:00:10]} 31. Rd2 {[%emt 0:00:39]} Qa5 {[%emt 0:00:50]} 32. Rbd1 {[%emt 0:00:23]} c3 {[%emt 0:00:33]} 33. bxc3 {[%emt 0:00:51]} dxc3 {[%emt 0:00:05]} 34. Rxd5 {[%emt 0:00:29]} Rxd5 {[%emt 0:00:04]} 35. Rb1 {[%emt 0:00:53]} Qxa3 {[%emt 0:00:16]} 36. h3 {[%emt 0:00:31]} Rd8 {[%emt 0:01:35]} 37. Ne4 {[%emt 0:00:14]} Ba2 {[%emt 0:00:29]} 38. Rb8 {[%emt 0:00:35]} Rxb8 {[%emt 0:00:15]} 39. Qxb8+ {[%emt 0:00:04]} Kh7 {[%emt 0:00:04]} 40. Qe5 {[%emt 0:00:39]} Qc1+ {[%emt 0:00:07]} 41. Kh2 {[%emt 0:00:03]} Be6 {[%emt 0:01:29]} 42. Qxc3 {[%emt 0:00:22]} Qf4+ {[%emt 0:00:36]} 43. Kg1 {[%emt 0:00:55]} f5 {[%emt 0:00:21]} 44. Nc5 {[%emt 0:00:36]} Bc4 {[%emt 0:00:05]} 45. Nd7 {[%emt 0:00:25]} a5 {[%emt 0:01:03]} 46. Ne5 {[%emt 0:01:05]} Bd5 {[%emt 0:00:28]} 47. Kf2 {[%emt 0:00:24]} Qa4 {[%emt 0:00:33]} 48. Qd3 {[%emt 0:00:18]} Be6 {[%emt 0:00:14]} 49. g4 {[%emt 0:00:24]} Qf4 {[%emt 0:00:06]} 50. Qd6 {[%emt 0:00:52]} Qh2+ {[%emt 0:01:11]} 51. Ke3 {[%emt 0:00:14]} f4+ {[%emt 0:00:29]} 52. Kd3 {[%emt 0:00:20]} Bg8 {[%emt 0:00:12]} 53. Nd7 {[%emt 0:00:53]} Bf7 {[%emt 0:00:47]} 54. Nf8+ {[%emt 0:00:19]} Kg8 {[%emt 0:00:20]} 55. Nd7 {[%emt 0:00:20]} Kh8 {[%emt 0:01:13]} 56. Ne5 {[%emt 0:00:29]} Ba2 {[%emt 0:00:00]} 57. Ng6+ {[%emt 0:00:41]} Kh7 {[%emt 0:00:12]} 58. Nf8+ {[%emt 0:00:33]} Kg8 {[%emt 0:00:09]} 59. Qd8 {[%emt 0:00:25]} Qf2 {[%emt 0:01:08]} 60. Ng6+ {[%emt 0:00:20]} Kh7 {[%emt 0:00:20]} 61. Nf8+ {[%emt 0:00:19]} Kg8 {[%emt 0:00:05]} 62. Ng6+ {[%emt 0:00:16]} Kh7 {[%emt 0:00:09]} 63. Nf8+ {[%emt 0:00:05]} Kg8 {[%emt 0:00:06]} 1/2-1/2

[Event "51st La Roda Open 2025"]
[Site "La Roda"]
[Date "2025.04.16"]
[Round "2.18"]
[White "Cuellar Montes, Alejandro"]
[Black "Siscar Conill, Aitor"]
[Result "1-0"]
[Annotator "RC"]
[ECO "B11"]
[WhiteElo "2200"]
[BlackElo "1986"]
[PlyCount "81"]
[EventDate "2025.04.15"]
[EventType "swiss"]
[EventCountry "ESP"]
[SourceTitle "playchess.com"]
[Source "ChessBase"]
[SourceQuality "1"]
[TimeControl "5400+30"]

1. e4 {[%emt 0:00:15]} c6 {[%emt 0:00:10]} 2. Nf3 {[%emt 0:00:10]} d5 {[%emt 0:00:06]} 3. Nc3 {[%emt 0:00:13]} dxe4 {[%emt 0:00:06]} 4. Nxe4 {[%emt 0:00:09]} Nf6 {[%emt 0:00:05]} 5. Qe2 {[%emt 0:00:34]} Nxe4 {[%emt 0:00:09]} 6. Qxe4 {[%emt 0:00:07]} Nd7 {[%emt 0:00:04]} 7. Bc4 {[%emt 0:00:45]} Nf6 {[%emt 0:00:07]} 8. Ne5 {[%emt 0:00:26]} e6 {[%emt 0:00:12]} 9. Qe2 {[%emt 0:00:08]} b5 {[%emt 0:01:06]} 10. Bb3 {[%emt 0:00:16]} Qc7 {[%emt 0:00:07]} 11. d4 {[%emt 0:01:33]} Bd6 {[%emt 0:01:17]} 12. O-O {[%emt 0:01:50]} O-O {[%emt 0:00:27]} 13. c3 {[%emt 0:05:31]} a5 {[%emt 0:01:50]} 14. Bc2 {[%emt 0:11:04]} Ba6 {[%emt 0:10:41]} 15. Bd3 {[%emt 0:07:07]} c5 {[%emt 0:12:02]} 16. Bxb5 {[%emt 0:33:48]} Bxb5 {[%emt 0:02:47]} 17. Qxb5 {[%emt 0:00:02]} Bxe5 {[%emt 0:00:25]} 18. dxe5 {[%emt 0:00:07]} Qxe5 {[%emt 0:00:08]} 19. Qc4 {[%emt 0:00:14]} Qd5 {[%emt 0:10:49]} 20. Qe2 {[%emt 0:15:43]} Rfd8 {[%emt 0:10:47]} 21. Be3 {[%emt 0:06:27]} Qe5 {[%emt 0:03:21]} 22. Qc4 {[%emt 0:01:35]} Rac8 {[%emt 0:03:00]} 23. Rfd1 {[%emt 0:01:52]} Rd5 {[%emt 0:08:25]} 24. Re1 {[%emt 0:06:42]} Qf5 {[%emt 0:15:02]} 25. h3 {[%emt 0:00:30]} Qc2 {[%emt 0:05:50]} 26. Qa6 {[%emt 0:01:39]} Rcd8 {[%emt 0:03:57]} 27. Qxa5 {[%emt 0:00:36]} Qxb2 {[%emt 0:00:41]} 28. c4 {[%emt 0:00:18]} R5d7 {[%emt 0:02:11]} 29. Qxc5 {[%emt 0:00:29]} h6 {[%emt 0:00:50]} 30. a4 {[%emt 0:00:49]} Ne4 {[%emt 0:01:54]} 31. Qb6 {[%emt 0:00:38]} Qc2 {[%emt 0:02:21]} 32. c5 {[%emt 0:01:49]} Nc3 {[%emt 0:02:05]} 33. c6 {[%emt 0:01:19]} Nd5 {[%emt 0:02:40]} 34. Qb5 {[%emt 0:01:11]} Rd6 {[%emt 0:01:12]} 35. Rac1 {[%emt 0:00:28]} Qa2 {[%emt 0:00:35]} 36. c7 {[%emt 0:01:02]} Rc8 {[%emt 0:00:11]} 37. Qb7 {[%emt 0:00:06]} Ne7 {[%emt 0:00:42]} 38. Bc5 {[%emt 0:00:04]} Rd2 {[%emt 0:00:36]} 39. Bxe7 {[%emt 0:00:22]} Rxf2 {[%emt 0:00:05]} 40. Qxc8+ {[%emt 0:00:06]} Kh7 {[%emt 0:00:05]} 41. Qb7 {[%emt 0:00:08]} 1-0